bitfinex/quotes_BTCUSD_20250903
["timestamp","ask_amount","ask_price","bid_price","bid_amount"]
[1756923904392,1.08388015,112390.0,112380.0,0.00493001]
[1756923904613,0.75484229,112390.0,112380.0,0.00493001]
[1756923905619,0.60424229,112390.0,112380.0,0.00493001]
[1756923905958,0.5123263,112390.0,112380.0,0.00493001]
[1756923906176,0.6629263,112390.0,112380.0,0.00493001]
[1756923907044,0.5945263,112390.0,112380.0,0.00493001]
[1756923907268,0.5945263,112390.0,112380.0,0.0071546]
[1756923909027,0.006,112390.0,112380.0,0.66476006]
[1756923909260,0.18395177,112390.0,112380.0,0.66253547]
[1756923909492,0.006,112390.0,112380.0,0.66253547]
[1756923910173,0.35528435,112400.0,112380.0,0.66253547]
[1756923910421,0.69528435,112400.0,112390.0,0.00222439]
[1756923910630,0.69528435,112400.0,112390.0,0.00732439]
[1756923911309,0.20468435,112400.0,112390.0,0.18527616]
[1756923911520,0.20468435,112400.0,112390.0,0.66268963]
[1756923911731,0.17793736,112400.0,112390.0,0.18305177]
[1756923912192,0.17893736,112400.0,112390.0,0.18305177]
[1756923912591,0.17793736,112400.0,112390.0,0.18305177]
[1756923913058,0.17893736,112400.0,112390.0,0.18405177]
[1756923913274,0.001,112400.0,112390.0,0.66368963]
[1756923913488,0.17893594,112400.0,112390.0,0.66368963]
[1756923913705,0.18193594,112400.0,112390.0,0.66468963]
[1756923913909,0.18193594,112400.0,112390.0,0.48673786]
[1756923914114,0.18193594,112400.0,112390.0,0.00408]
[1756923914539,0.18193594,112400.0,112390.0,0.18505177]
[1756923915388,0.004,112400.0,112390.0,0.18505177]
[1756923915629,0.18193594,112400.0,112390.0,0.66468963]
[1756923916960,0.18193594,112400.0,112390.0,0.00408]
[1756923917399,0.18193594,112400.0,112390.0,0.18203177]
[1756923917972,0.18193594,112400.0,112390.0,0.00408]
[1756923918172,0.18395594,112400.0,112390.0,0.00408]
[1756923918651,0.18716594,112400.0,112390.0,0.00408]
[1756923918853,0.18716594,112400.0,112390.0,0.18203177]
[1756923920780,0.18716594,112400.0,112390.0,0.00408]
[1756923920976,0.18716594,112400.0,112390.0,0.002]
[1756923921183,0.6668038,112400.0,112390.0,0.002]
[1756923921381,1.0068038,112400.0,112390.0,0.002]
[1756923921590,1.03355079,112400.0,112390.0,0.002]
[1756923921930,1.21860678,112400.0,112390.0,0.002]
[1756923922165,1.24179245,112400.0,112390.0,0.002]
[1756923923631,1.39235245,112400.0,112390.0,0.002]
[1756923923856,1.21705245,112400.0,112390.0,0.002]
[1756923924075,1.36761245,112400.0,112390.0,0.002]
[1756923924302,0.86478892,112400.0,112390.0,0.002]
[1756923924520,0.77287293,112400.0,112390.0,0.002]
[1756923924734,0.77287293,112400.0,112390.0,0.00408]
[1756923924955,0.77287293,112400.0,112390.0,0.002]
[1756923925806,1.25251079,112400.0,112390.0,0.002]
[1756923927307,1.82406464,112400.0,112390.0,0.002]
[1756923927577,1.34442678,112400.0,112390.0,0.002]
[1756923929123,1.91018783,112400.0,112390.0,0.002]
[1756923930922,1.91018783,112400.0,112380.0,1e-08]
[1756923931145,1.08950562,112390.0,112380.0,1e-08]
[1756923931381,1.20616161,112390.0,112380.0,1e-08]
[1756923931626,1.21174896,112390.0,112380.0,1e-08]
[1756923931867,1.36551896,112390.0,112380.0,1e-08]
[1756923932345,1.36551896,112390.0,112380.0,0.00100001]
[1756923932551,1.21495896,112390.0,112380.0,1e-08]
[1756923932797,1.21595896,112390.0,112380.0,0.00100001]
[1756923933055,1.36651896,112390.0,112380.0,0.00100001]
[1756923933528,1.21595896,112390.0,112380.0,0.00100001]
[1756923933747,1.24986297,112390.0,112380.0,0.00100001]
[1756923933975,1.10030297,112390.0,112380.0,0.00100001]
[1756923934198,1.25086297,112390.0,112380.0,0.00308001]
[1756923934657,1.10030297,112390.0,112380.0,0.00100001]
[1756923934895,1.25086297,112390.0,112380.0,0.00100001]
[1756923935037,1.10030297,112390.0,112380.0,0.00100001]
[1756923935482,1.10030297,112390.0,112380.0,0.00308001]
[1756923935697,1.24563297,112390.0,112380.0,0.00308001]
[1756923935901,1.25086297,112390.0,112380.0,0.00100001]
[1756923937908,1.34277896,112390.0,112380.0,0.00100001]
[1756923938983,1.25086297,112390.0,112380.0,0.00305001]
[1756923939141,1.00315698,112390.0,112380.0,0.00305001]
[1756923939364,0.67407912,112390.0,112380.0,0.00305001]
[1756923939590,1.0336984,112390.0,112380.0,0.00305001]
[1756923941907,1.0390084,112390.0,112380.0,0.00305001]
[1756923942157,1.0390084,112390.0,112380.0,0.00100001]
[1756923947299,0.8884484,112390.0,112380.0,0.00305001]
[1756923947562,1.0390084,112390.0,112380.0,0.00305001]
[1756923948017,0.52882912,112390.0,112380.0,0.00305001]
[1756923948232,1.0336984,112390.0,112380.0,0.00305001]
[1756923948987,0.67407912,112390.0,112380.0,0.00305001]
[1756923949212,1.0390084,112390.0,112380.0,0.00305001]
[1756923949459,0.18351912,112390.0,112380.0,0.36793388]
[1756923949670,0.002,112390.0,112380.0,0.99521216]
[1756923950154,0.002,112390.0,112380.0,0.63559288]
[1756923950593,0.002,112390.0,112380.0,0.99521216]
[1756923951031,0.002,112390.0,112380.0,1.39521216]
[1756923951228,0.002,112390.0,112380.0,0.6759736]
[1756923951493,0.002,112390.0,112380.0,1.39521216]
[1756923951878,0.002,112390.0,112380.0,1.45920124]
[1756923952563,0.002,112390.0,112380.0,1.39521216]
[1756923953263,0.002,112390.0,112380.0,1.45920124]
[1756923953494,0.002,112390.0,112380.0,1.39521216]
[1756923954261,0.002,112390.0,112380.0,1.75483144]
[1756923954510,0.002,112390.0,112380.0,1.77577026]
[1756923954781,0.002,112390.0,112380.0,1.83975934]
[1756923955202,0.001,112390.0,112380.0,1.83875934]
[1756923955407,0.002,112390.0,112380.0,1.63070006]
[1756923955624,0.001,112390.0,112380.0,1.62970006]
[1756923955862,0.001,112390.0,112380.0,1.47914006]
[1756923956047,0.001,112390.0,112380.0,1.63070006]
[1756923956048,0.002,112390.0,112380.0,1.63070006]
[1756923956528,0.003,112390.0,112380.0,1.48114006]
[1756923956992,0.002,112390.0,112380.0,0.7609015]
[1756923957242,0.003,112390.0,112380.0,1.56767098]
[1756923957864,0.003,112390.0,112380.0,1.39621216]
[1756923957865,0.003,112390.0,112380.0,1.03659288]
[1756923958054,0.003,112390.0,112380.0,1.18711288]
[1756923958284,0.003,112390.0,112380.0,1.03355288]
[1756923958487,0.003,112390.0,112380.0,1.54369216]
[1756923958691,0.003,112390.0,112380.0,1.54269216]
[1756923958692,0.001,112390.0,112380.0,1.54269216]
[1756923958908,0.001,112390.0,112380.0,1.54469216]
[1756923959159,0.001,112390.0,112380.0,1.54369216]
[1756923959385,0.002,112390.0,112380.0,1.54469216]
[1756923959612,0.002,112390.0,112380.0,1.54773216]
[1756923959879,0.001,112390.0,112380.0,1.54673216]
[1756923960099,0.002,112390.0,112380.0,1.54773216]
[1756923960320,0.002,112390.0,112380.0,0.40300001]
[1756923960321,0.18526177,112390.0,112380.0,0.40300001]
[1756923960531,0.18526177,112390.0,112380.0,0.00300001]
[1756923960747,0.54488105,112390.0,112380.0,0.00300001]
[1756923960966,0.69540105,112390.0,112380.0,0.00300001]
[1756923961183,0.36252919,112390.0,112380.0,0.00300001]
[1756923961391,0.72214847,112390.0,112380.0,0.00300001]
[1756923961612,1.06214847,112390.0,112380.0,0.00300001]
[1756923961822,1.08533414,112390.0,112380.0,0.00300001]
[1756923962661,1.08433414,112390.0,112380.0,0.00200001]
[1756923962909,1.08533414,112390.0,112380.0,0.00300001]
[1756923963307,1.08433414,112390.0,112380.0,0.00100001]
[1756923963715,0.93481414,112390.0,112380.0,0.00200001]
[1756923963958,0.72571486,112390.0,112380.0,0.00200001]
[1756923964110,1.08533414,112390.0,112380.0,0.00200001]
[1756923964694,1.06214847,112390.0,112380.0,0.00200001]
[1756923968992,1.15406446,112390.0,112380.0,0.00200001]
[1756923969229,1.06214847,112390.0,112380.0,0.00200001]
[1756923969485,1.17720446,112390.0,112380.0,0.00200001]
[1756923969745,1.38630374,112390.0,112380.0,0.00200001]
[1756923969982,1.53682374,112390.0,112380.0,0.00200001]
[1756923970959,1.38630374,112390.0,112380.0,0.00200001]
[1756923971165,1.57591275,112390.0,112380.0,0.00200001]
[1756923971939,1.66782874,112390.0,112380.0,0.00200001]
[1756923974902,1.66682874,112390.0,112380.0,0.00100001]
[1756923975403,1.66882874,112390.0,112380.0,0.00200001]
[1756923981407,1.68976756,112390.0,112380.0,0.00200001]
[1756923982542,1.68876756,112390.0,112380.0,0.00100001]
[1756923983185,1.68776756,112390.0,112380.0,0.00100001]
[1756923983459,1.68976756,112390.0,112380.0,0.00100001]
[1756923983674,1.68876756,112390.0,112380.0,1e-08]
[1756923983879,1.68676756,112390.0,112380.0,1e-08]
[1756923984090,2.04838684,112390.0,112380.0,1e-08]
[1756923984301,1.68876756,112390.0,112380.0,1e-08]
[1756923984516,1.69176756,112390.0,112380.0,1e-08]
[1756923985183,1.54124756,112390.0,112380.0,1e-08]
[1756923985413,1.69176756,112390.0,112380.0,1e-08]
[1756923987710,1.65267855,112390.0,112380.0,1e-08]
[1756923988647,1.67182011,112390.0,112380.0,1e-08]
[1756923988861,2.03143939,112390.0,112380.0,1e-08]
[1756923990664,1.52130011,112390.0,112380.0,1e-08]
[1756923990905,1.67182011,112390.0,112380.0,1e-08]
[1756923991151,1.47715129,112390.0,112380.0,0.00201001]
[1756923991367,1.62767129,112390.0,112380.0,1e-08]
[1756923995678,1.47715129,112390.0,112380.0,1e-08]
[1756923995877,1.62767129,112390.0,112380.0,1e-08]
[1756923998193,1.47715129,112390.0,112380.0,1e-08]
[1756923998350,1.62767129,112390.0,112380.0,1e-08]
[1756924000404,1.6339162,112390.0,112380.0,1e-08]
[1756924000865,1.4833962,112390.0,112380.0,1e-08]
[1756924001039,1.6338762,112390.0,112380.0,1e-08]
[1756924001482,1.24383967,112390.0,112380.0,0.00207001]
[1756924001680,1.29091877,112390.0,112380.0,0.00514001]
[1756924001879,1.27177721,112390.0,112380.0,0.00207001]
[1756924002627,1.34021721,112390.0,112380.0,0.00207001]
[1756924003320,1.35940386,112390.0,112380.0,0.00207001]
[1756924003816,1.35940386,112390.0,112380.0,0.00514001]
[1756924004041,0.87972183,112390.0,112380.0,0.00514001]
[1756924004264,1.35940386,112390.0,112380.0,0.00514001]
[1756924004505,1.34021721,112390.0,112380.0,0.00514001]
[1756924005169,1.34021721,112390.0,112380.0,0.00207001]
[1756924006444,1.18973721,112390.0,112380.0,0.00207001]
[1756924006649,1.34021721,112390.0,112380.0,0.00514001]
[1756924006856,1.34021721,112390.0,112380.0,0.00207001]
[1756924008289,1.18973721,112390.0,112380.0,0.00207001]
[1756924008501,0.27813919,112390.0,112380.0,0.00514001]
[1756924008710,0.42861919,112390.0,112380.0,0.00514001]
[1756924008932,0.61813919,112390.0,112380.0,0.00514001]
[1756924009138,0.76861919,112390.0,112380.0,0.00514001]
[1756924009557,0.61813919,112390.0,112380.0,0.00514001]
[1756924009767,0.70017919,112390.0,112380.0,0.0073646]
[1756924009974,0.70017919,112390.0,112380.0,0.00514001]
[1756924010181,0.70017919,112390.0,112380.0,0.0073646]
[1756924010395,0.70017919,112390.0,112380.0,0.00514001]
[1756924013010,0.70017919,112390.0,112380.0,0.00207001]
[1756924013217,1.17986122,112390.0,112380.0,0.00207001]
[1756924014736,1.18191122,112390.0,112380.0,0.00207001]
[1756924014930,1.18496122,112390.0,112380.0,1e-08]
[1756924015339,1.18492122,112390.0,112380.0,0.00207001]
[1756924017769,1.18187122,112390.0,112380.0,0.00207001]
[1756924017968,1.18492122,112390.0,112380.0,0.00207001]
[1756924018232,1.18492122,112390.0,112380.0,1e-08]
[1756924019322,1.25336122,112390.0,112380.0,1e-08]
[1756924021600,1.34527721,112390.0,112380.0,1e-08]
[1756924023824,1.25336122,112390.0,112380.0,1e-08]
[1756924024073,1.25332122,112390.0,112380.0,1e-08]
[1756924024631,0.62323919,112390.0,112380.0,1e-08]
[1756924024852,1.25332122,112390.0,112380.0,1e-08]
[1756924029454,1.34523721,112390.0,112380.0,1e-08]
[1756924029628,1.40950382,112390.0,112380.0,1e-08]
[1756924031126,1.45321264,112390.0,112380.0,1e-08]
[1756924031298,1.4723876,112390.0,112380.0,1e-08]
[1756924031720,1.4723476,112390.0,112380.0,1e-08]
[1756924036425,1.9210476,112390.0,112380.0,1e-08]
[1756924039228,1.90187264,112390.0,112380.0,1e-08]
[1756924040609,1.92102816,112390.0,112380.0,1e-08]
[1756924040827,1.92102816,112390.0,112350.0,0.00363]
[1756924041060,0.99768131,112360.0,112350.0,0.0004]
[1756924041330,1.14804131,112360.0,112350.0,0.0004]
[1756924041627,1.17693049,112360.0,112350.0,0.00244]
[1756924041811,1.26884648,112360.0,112350.0,0.00244]
[1756924042127,1.27178648,112360.0,112350.0,0.00244]
[1756924042923,1.28086385,112360.0,112350.0,0.00244]
[1756924043412,1.28186385,112360.0,112350.0,0.00344]
[1756924044296,1.37577984,112360.0,112350.0,0.00344]
[1756924045142,1.22541984,112360.0,112350.0,0.00344]
[1756924045325,1.37577984,112360.0,112350.0,0.00344]
[1756924045490,1.22541984,112360.0,112350.0,0.00344]
[1756924045682,1.37577984,112360.0,112350.0,0.00344]
[1756924046540,1.22541984,112360.0,112350.0,0.00344]
[1756924046751,1.37577984,112360.0,112350.0,0.00344]
[1756924047171,1.22541984,112360.0,112350.0,0.00344]
[1756924047362,1.18687786,112360.0,112350.0,0.00667]
[1756924047609,1.03651786,112360.0,112350.0,0.00667]
[1756924047844,1.18687786,112360.0,112350.0,0.00667]
[1756924048773,1.18687786,112360.0,112350.0,0.00344]
[1756924048959,1.03651786,112360.0,112350.0,0.00344]
[1756924049355,1.18687786,112360.0,112350.0,0.00344]
[1756924049565,1.18687786,112360.0,112350.0,0.00667]
[1756924049796,1.03651786,112360.0,112350.0,0.00667]
[1756924049983,1.18687786,112360.0,112350.0,0.00667]
[1756924050900,1.03651786,112360.0,112350.0,0.00667]
[1756924051103,1.18687786,112360.0,112350.0,0.00667]
[1756924052173,1.03651786,112360.0,112350.0,0.00667]
[1756924052390,0.55683583,112360.0,112350.0,0.00667]
[1756924052606,0.70719583,112360.0,112350.0,0.00667]
[1756924052820,1.18687786,112360.0,112350.0,0.00667]
[1756924053267,0.70719583,112360.0,112350.0,0.00667]
[1756924055514,1.18687786,112360.0,112350.0,0.00667]
[1756924056924,1.18687786,112360.0,112350.0,0.00344]
[1756924060399,0.70719583,112360.0,112350.0,0.00344]
[1756924060698,1.18687786,112360.0,112350.0,0.00344]
[1756924062245,1.18891786,112360.0,112350.0,0.00344]
[1756924062780,1.18687786,112360.0,112350.0,0.00344]
[1756924063238,1.18891786,112360.0,112350.0,0.00344]
[1756924063694,0.70923583,112360.0,112350.0,0.00344]
[1756924063877,1.06705758,112360.0,112350.0,0.00344]
[1756924064279,0.91669758,112360.0,112350.0,0.00344]
[1756924064577,1.06701758,112360.0,112350.0,0.0064]
[1756924064754,1.06701758,112360.0,112350.0,0.00344]
[1756924065532,1.06905758,112360.0,112350.0,0.00344]
[1756924065720,1.07208758,112360.0,112350.0,0.00344]
[1756924065922,1.43194933,112360.0,112350.0,0.0014]
[1756924069388,1.43094933,112360.0,112350.0,0.0004]
[1756924069596,1.42894933,112360.0,112350.0,0.0004]
[1756924070108,1.42994933,112360.0,112350.0,0.0004]
[1756924070928,1.43094933,112360.0,112350.0,0.0014]
[1756924074998,1.28062933,112360.0,112350.0,0.0014]
[1756924075205,1.43090933,112360.0,112350.0,0.00349]
[1756924075622,1.43090933,112360.0,112350.0,0.0014]
[1756924076828,1.43090933,112360.0,112350.0,0.00349]
[1756924077076,0.91773758,112360.0,112350.0,0.00349]
[1756924077251,1.06597758,112360.0,112350.0,0.00349]
[1756924077857,1.07104758,112360.0,112350.0,0.00349]
[1756924078065,1.07104758,112360.0,112350.0,0.0014]
[1756924079174,1.43090933,112360.0,112350.0,0.0014]
[1756924080385,1.43086933,112360.0,112350.0,0.0014]
[1756924080672,1.43086933,112360.0,112350.0,0.00349]
[1756924081002,1.43086933,112360.0,112350.0,0.0014]
[1756924087207,1.97456306,112360.0,112350.0,0.0014]
[1756924087381,1.61470131,112360.0,112350.0,0.0014]
[1756924087837,1.97456306,112360.0,112350.0,0.0014]
[1756924088413,1.61470131,112360.0,112350.0,0.0014]
[1756924088609,1.97456306,112360.0,112350.0,0.0014]
[1756924089067,1.61470131,112360.0,112350.0,0.0014]
[1756924089571,1.97456306,112360.0,112350.0,0.0014]
[1756924090450,1.82432306,112360.0,112350.0,0.0014]
[1756924090844,1.97452306,112360.0,112350.0,0.0014]
[1756924094310,1.82432306,112360.0,112350.0,0.0014]
[1756924094508,1.97452306,112360.0,112350.0,0.0014]
[1756924094988,1.82432306,112360.0,112350.0,0.0014]
[1756924095236,1.97452306,112360.0,112350.0,0.0014]
[1756924095720,1.82432306,112360.0,112350.0,0.0014]
[1756924095933,1.97452306,112360.0,112350.0,0.0014]
[1756924096274,1.61466131,112360.0,112350.0,0.0014]
[1756924096958,1.97452306,112360.0,112350.0,0.0014]
[1756924098101,1.88260707,112360.0,112350.0,0.0014]
[1756924100513,1.23775447,112340.0,112330.0,0.0004]
[1756924100726,1.38791447,112340.0,112330.0,0.0004]
[1756924100935,1.38994447,112340.0,112330.0,0.00251]
[1756924101160,1.41980742,112340.0,112330.0,0.00251]
[1756924101785,1.41989056,112340.0,112330.0,0.00251]
[1756924102017,0.69503706,112340.0,112330.0,0.00251]
[1756924102243,1.41476056,112340.0,112330.0,0.00251]
[1756924102741,1.42189056,112340.0,112330.0,0.00251]
[1756924102944,1.42089056,112340.0,112330.0,0.0004]
[1756924103180,1.42189056,112340.0,112330.0,0.0004]
[1756924104297,1.60898199,112340.0,112330.0,0.0004]
[1756924105266,1.58224655,112340.0,112330.0,0.0004]
[1756924110572,1.58124655,112340.0,112330.0,0.0004]
[1756924110817,1.58324655,112340.0,112330.0,0.0004]
[1756924111011,1.58224655,112340.0,112330.0,0.0004]
[1756924111238,1.58324655,112340.0,112330.0,0.0004]
[1756924111676,1.58224655,112340.0,112330.0,0.0004]
[1756924111906,1.58124655,112340.0,112330.0,0.0004]
[1756924112843,1.43108655,112340.0,112330.0,0.0004]
[1756924113041,1.58324655,112340.0,112330.0,0.0004]
[1756924123429,1.60860287,112340.0,112330.0,0.0004]
[1756924123630,1.58324655,112340.0,112330.0,0.0004]
[1756924125540,1.34364253,112340.0,112330.0,0.0004]
[1756924126344,0.71336305,112340.0,112330.0,0.0004]
[1756924126541,1.34356253,112340.0,112330.0,0.0004]
[1756924132969,0.17806267,112320.0,112310.0,0.0004]
[1756924133204,0.80826215,112320.0,112310.0,0.0004]
[1756924133430,0.80826215,112320.0,112310.0,0.00241]
[1756924133628,0.17806267,112320.0,112310.0,0.00241]
[1756924133962,0.80822215,112320.0,112310.0,0.00241]
[1756924134189,0.83798873,112320.0,112310.0,0.00241]
[1756924134749,0.68794873,112320.0,112310.0,0.00241]
[1756924134925,0.83798873,112320.0,112310.0,0.00241]
[1756924136046,1.17798873,112320.0,112310.0,0.00241]
[1756924137437,1.18005873,112320.0,112310.0,0.00241]
[1756924138270,1.18314873,112320.0,112310.0,0.00241]
[1756924138918,1.03001873,112320.0,112310.0,0.00241]
[1756924139125,1.18005873,112320.0,112310.0,0.00241]
[1756924139361,1.18314873,112320.0,112310.0,0.00241]
[1756924139531,1.03001873,112320.0,112310.0,0.00241]
[1756924139923,1.18005873,112320.0,112310.0,0.00241]
[1756924140317,0.54782925,112320.0,112310.0,0.00241]
[1756924140530,0.69786925,112320.0,112310.0,0.00241]
[1756924140743,1.17798873,112320.0,112310.0,0.00241]
[1756924141126,1.18005873,112320.0,112310.0,0.00241]
[1756924141338,1.17798873,112320.0,112310.0,0.00241]
[1756924141566,1.17798873,112320.0,112310.0,0.00539]
[1756924142102,1.17798873,112320.0,112310.0,0.00241]
[1756924143347,0.69786925,112320.0,112310.0,0.00241]
[1756924143559,1.17798873,112320.0,112310.0,0.00241]
[1756924144208,1.18314873,112320.0,112310.0,0.00241]
[1756924144629,0.70302925,112320.0,112310.0,0.00241]
[1756924144849,1.18314873,112320.0,112310.0,0.00241]
[1756924145048,1.18005873,112320.0,112310.0,0.00241]
[1756924146050,0.54989925,112320.0,112310.0,0.00241]
[1756924146258,1.18005873,112320.0,112310.0,0.00241]
[1756924146477,1.17794873,112320.0,112310.0,0.00241]
[1756924147662,1.18310873,112320.0,112310.0,0.00241]
[1756924148080,0.70298925,112320.0,112310.0,0.00241]
[1756924148269,1.18310873,112320.0,112310.0,0.00241]
[1756924149028,1.03310873,112320.0,112310.0,0.00241]
[1756924149246,0.54989925,112320.0,112310.0,0.00241]
[1756924149458,0.69782925,112320.0,112310.0,0.00241]
[1756924149672,0.69782925,112320.0,112310.0,0.00463598]
[1756924149918,1.18310873,112320.0,112310.0,0.0004]
[1756924150461,1.18010873,112320.0,112310.0,0.0004]
[1756924150716,1.18110873,112320.0,112310.0,0.0004]
[1756924151179,1.18210873,112320.0,112310.0,0.0004]
[1756924151609,1.18110873,112320.0,112310.0,0.0004]
[1756924152034,1.18010873,112320.0,112310.0,0.0004]
[1756924152264,0.70098925,112320.0,112310.0,0.0004]
[1756924152579,1.18110873,112320.0,112310.0,0.0004]
[1756924153401,1.18210873,112320.0,112310.0,0.0004]
[1756924153634,0.70198925,112320.0,112310.0,0.0004]
[1756924153873,1.18210873,112320.0,112310.0,0.0004]
[1756924157260,1.66222821,112320.0,112310.0,0.0004]
[1756924157501,1.51222821,112320.0,112310.0,0.0004]
[1756924157732,1.66218821,112320.0,112310.0,0.0004]
[1756924162747,1.7541042,112320.0,112310.0,0.0004]
[1756924164358,1.6041442,112320.0,112310.0,0.0004]
[1756924164578,1.27398472,112320.0,112310.0,0.0004]
[1756924165552,1.12402472,112320.0,112310.0,0.0004]
[1756924165736,1.27398472,112320.0,112310.0,0.0004]
[1756924166150,1.12402472,112320.0,112310.0,0.0004]
[1756924166354,1.27398472,112320.0,112310.0,0.0004]
[1756924168962,1.12402472,112320.0,112310.0,0.0004]
[1756924169178,1.27394472,112320.0,112310.0,0.0004]
[1756924169686,1.18202873,112320.0,112310.0,0.00236]
[1756924170269,0.55198925,112320.0,112310.0,0.00236]
[1756924170498,1.18202873,112320.0,112310.0,0.00236]
[1756924171707,1.03210873,112320.0,112310.0,0.00236]
[1756924171923,1.18202873,112320.0,112310.0,0.00236]
[1756924172761,1.03210873,112320.0,112310.0,0.00236]
[1756924172977,1.18202873,112320.0,112310.0,0.00236]
[1756924173108,1.03210873,112320.0,112310.0,0.00236]
[1756924173326,1.18202873,112320.0,112310.0,0.00236]
[1756924173612,1.03210873,112320.0,112310.0,0.00236]
[1756924173782,1.18202873,112320.0,112310.0,0.00236]
[1756924174768,1.18202873,112320.0,112310.0,0.0004]
[1756924175043,1.18202873,112320.0,112310.0,0.00236]
[1756924177903,1.18202873,112320.0,112310.0,0.0004]
[1756924178647,1.03210873,112320.0,112310.0,0.0004]
[1756924178858,1.18198873,112320.0,112310.0,0.0004]
[1756924180015,1.03210873,112320.0,112310.0,0.0004]
[1756924180233,1.18198873,112320.0,112310.0,0.0004]
[1756924180666,1.25046873,112320.0,112310.0,0.0004]
[1756924182065,1.24946873,112320.0,112310.0,0.0004]
[1756924182477,1.73158821,112320.0,112310.0,0.0004]
[1756924182695,1.73058821,112320.0,112310.0,0.0004]
[1756924182897,1.25146873,112320.0,112310.0,0.0004]
[1756924183295,1.73158821,112320.0,112310.0,0.0004]
[1756924185669,1.85209064,112320.0,112310.0,0.0004]
[1756924185891,1.49184351,112320.0,112310.0,0.0004]
[1756924186779,1.34196351,112320.0,112310.0,0.00254]
[1756924186983,1.49184351,112320.0,112310.0,0.00254]
[1756924187441,1.34196351,112320.0,112310.0,0.00254]
[1756924187657,0.20782925,112320.0,112310.0,0.18375853]
[1756924187870,0.20782925,112320.0,112310.0,0.00568]
[1756924188083,0.35766925,112320.0,112310.0,0.00568]
[1756924188704,0.35766925,112320.0,112310.0,0.00790598]
[1756924189070,0.35766925,112320.0,112310.0,0.18598451]
[1756924189308,0.35766925,112320.0,112310.0,0.18375853]
[1756924189511,0.35766925,112320.0,112310.0,0.00568]
[1756924189728,0.20782925,112320.0,112310.0,0.18598451]
[1756924189929,0.20782925,112320.0,112310.0,0.18375853]
[1756924190158,0.35766925,112320.0,112310.0,0.18375853]
[1756924190372,0.35766925,112320.0,112310.0,0.00568]
[1756924190587,0.35766925,112320.0,112310.0,0.00790598]
[1756924190975,0.35766925,112320.0,112310.0,0.18598451]
[1756924191185,0.35766925,112320.0,112310.0,0.18375853]
[1756924192037,0.35766925,112320.0,112310.0,0.00568]
[1756924192366,0.35766925,112320.0,112310.0,0.00790598]
[1756924192557,0.20782925,112320.0,112310.0,0.00790598]
[1756924192772,0.35766925,112320.0,112310.0,0.00790598]
[1756924193116,0.20782925,112320.0,112310.0,0.00476598]
[1756924193394,0.56807638,112320.0,112310.0,0.00476598]
[1756924193678,0.71791638,112320.0,112310.0,0.00476598]
[1756924194004,0.72306638,112320.0,112310.0,0.00254]
[1756924194305,0.36281925,112320.0,112310.0,0.00254]
[1756924194497,0.72306638,112320.0,112310.0,0.0004]
[1756924195013,0.36281925,112320.0,112310.0,0.0004]
[1756924195205,0.72306638,112320.0,112310.0,0.0004]
[1756924196189,0.72306638,112320.0,112310.0,0.00254]
[1756924200330,0.72302638,112320.0,112310.0,0.00476598]
[1756924200526,0.72302638,112320.0,112310.0,0.00254]
[1756924201392,0.72302638,112320.0,112310.0,0.0004]
[1756924202297,0.72302638,112320.0,112310.0,0.00254]
[1756924202522,0.72302638,112320.0,112310.0,0.0004]
[1756924203413,0.36277925,112320.0,112310.0,0.0004]
[1756924203622,0.72302638,112320.0,112310.0,0.0004]
[1756924204500,1.08327351,112320.0,112310.0,0.0004]
[1756924204740,1.44609351,112320.0,112310.0,0.0004]
[1756924204977,1.93849525,112320.0,112310.0,0.0004]
[1756924205685,1.57824812,112320.0,112310.0,0.0004]
[1756924205913,1.93849525,112320.0,112310.0,0.0004]
[1756924206341,1.89825663,112320.0,112310.0,0.0004]
[1756924207079,1.5380095,112320.0,112310.0,0.0004]
[1756924207498,1.89825663,112320.0,112310.0,0.0004]
[1756924207764,1.5380095,112320.0,112310.0,0.0004]
[1756924210435,1.89825663,112320.0,112310.0,0.0004]
[1756924210637,1.94712062,112320.0,112310.0,0.0004]
[1756924211839,1.79732062,112320.0,112310.0,0.0004]
[1756924212059,1.94708062,112320.0,112310.0,0.0004]
[1756924212692,1.96801944,112320.0,112310.0,0.0004]
[1756924213604,1.81825944,112320.0,112310.0,0.0004]
[1756924213818,1.96801944,112320.0,112310.0,0.0004]
[1756924217088,1.98946287,112320.0,112310.0,1e-08]
[1756924217806,3.07020426,112320.0,112310.0,1e-08]
[1756924218047,3.11175703,112320.0,112310.0,1e-08]
[1756924218555,3.11171703,112320.0,112310.0,1e-08]
[1756924218789,2.96099703,112320.0,112310.0,1e-08]
[1756924219036,3.08830119,112320.0,112310.0,1e-08]
[1756924219276,3.09130119,112320.0,112310.0,1e-08]
[1756924219928,3.09930119,112320.0,112310.0,1e-08]
[1756924220725,2.97199703,112320.0,112310.0,1e-08]
[1756924220945,3.09934119,112320.0,112310.0,1e-08]
[1756924222537,2.94958119,112320.0,112310.0,1e-08]
[1756924222768,1.99711637,112320.0,112310.0,1e-08]
[1756924223479,2.92813776,112320.0,112310.0,1e-08]
[1756924223710,3.07789776,112320.0,112310.0,1e-08]
[1756924223946,2.92813776,112320.0,112310.0,1e-08]
[1756924224185,3.07785776,112320.0,112310.0,1e-08]
[1756924226243,2.92813776,112320.0,112310.0,1e-08]
[1756924226442,2.92739177,112320.0,112310.0,1e-08]
[1756924226650,3.07711177,112320.0,112310.0,1e-08]
[1756924226886,2.92739177,112320.0,112310.0,1e-08]
[1756924227107,1.77496639,112320.0,112310.0,1e-08]
[1756924227347,1.92468639,112320.0,112310.0,0.00195001]
[1756924227599,1.90554946,112320.0,112310.0,0.00195001]
[1756924227824,1.75582946,112320.0,112310.0,1e-08]
[1756924228071,1.36949351,112320.0,112310.0,0.00195001]
[1756924228298,1.51921351,112320.0,112310.0,0.00195001]
[1756924228516,1.51921351,112320.0,112310.0,0.00511001]
[1756924228744,1.17921351,112320.0,112310.0,0.00511001]
[1756924229026,1.02949351,112320.0,112310.0,0.00511001]
[1756924229226,1.51921351,112320.0,112310.0,0.00195001]
[1756924230503,1.51921351,112320.0,112310.0,0.00511001]
[1756924231157,1.36949351,112320.0,112310.0,0.00511001]
[1756924231372,1.51921351,112320.0,112310.0,0.00511001]
[1756924231936,1.51921351,112320.0,112280.0,0.36024713]
[1756924231937,0.17811025,112290.0,112280.0,0.36024713]
[1756924232148,0.17811025,112290.0,112280.0,0.63028844]
[1756924232764,0.17811025,112290.0,112280.0,0.63919474]
[1756924233007,0.3278286,112300.0,112280.0,1.03919474]